bitfinex/quotes_ETHUSD_20240709
["timestamp","ask_amount","ask_price","bid_price","bid_amount"]
[1720546627851,3.70263589,3071.7,3071.6,3.25563]
[1720546628059,5.12382897,3071.7,3071.6,3.25563]
[1720546628269,0.87255878,3071.5,3071.4,3.25575]
[1720546628469,4.78342663,3071.5,3071.4,3.25575]
[1720546628683,0.87255878,3071.2,3071.1,4.33416]
[1720546629151,3.31519166,3071.2,3071.1,4.33416]
[1720546629352,0.87255878,3071.2,3071.1,4.33416]
[1720546629592,0.87255878,3071.2,3071.1,7.59032]
[1720546629892,0.87255878,3071.2,3071.1,8.582212]
[1720546630479,1.55349701,3071.2,3071.1,8.582212]
[1720546631085,3.31523464,3071.2,3071.1,8.582212]
[1720546631289,0.87255878,3071.2,3071.1,7.59032]
[1720546631566,1.89403289,3071.2,3071.1,7.59032]
[1720546631873,3.31519288,3071.2,3071.1,7.59032]
[1720546632496,2.29371877,3071.2,3071.1,6.51232]
[1720546633895,3.31504446,3071.2,3071.1,6.51232]
[1720546634681,3.31504618,3071.2,3071.1,6.51232]
[1720546634880,3.31503428,3071.2,3071.1,6.51232]
[1720546635466,0.87255878,3070.5,3070.4,3.25684]
[1720546635669,3.31446884,3070.5,3070.3,3.257]
[1720546635874,2.44189125,3070.4,3070.3,3.257]
[1720546636353,1.8929364,3070.5,3070.4,3.2569]
[1720546636595,3.31444103,3070.5,3070.4,3.2569]
[1720546636812,0.87255878,3070.5,3070.4,3.2569]
[1720546637155,1.02037762,3070.6,3070.4,6.51372]
[1720546637385,1.02037762,3070.6,3070.5,1.078]
[1720546637584,2.44183625,3070.6,3070.5,1.078]
[1720546637810,2.44143857,3070.6,3070.5,1.078]
[1720546637976,2.44147419,3070.6,3070.5,1.078]
[1720546638665,2.44147419,3070.6,3070.4,6.51372]
[1720546638984,0.68008128,3070.5,3070.4,4.146172]
[1720546639189,0.68008128,3070.6,3070.5,8.78458]
[1720546639363,0.68008128,3070.9,3070.8,3.25648]
[1720546639899,1.55264006,3070.9,3070.8,3.25648]
[1720546640076,1.89256241,3070.9,3070.8,3.25648]
[1720546640502,0.87255878,3070.9,3070.8,3.25648]
[1720546641157,1.02024885,3071.0,3070.9,3.25637]
[1720546641361,1.02024885,3071.1,3071.0,3.25626]
[1720546641596,2.44144314,3071.1,3071.0,5.60186]
[1720546641800,2.44144314,3071.1,3071.0,6.2173208]
[1720546641801,0.68019218,3071.1,3071.0,6.2173208]
[1720546642005,0.68019218,3071.3,3071.0,2.9610608]
[1720546642206,1.55275096,3071.5,3071.4,8.85728]
[1720546642391,0.87255878,3071.5,3071.4,8.85728]
[1720546643165,0.68019218,3071.6,3071.5,6.51146]
[1720546643422,19.66,3071.7,3071.6,6.51126]
[1720546643707,20.53255878,3071.7,3071.6,6.51126]
[1720546644408,20.53255878,3071.7,3071.4,3.25575]
[1720546644409,0.87255878,3071.5,3071.4,3.25575]
[1720546644613,1.55279775,3071.5,3071.4,3.25575]
[1720546644782,1.55279775,3071.5,3071.4,6.51159]
[1720546644783,0.87255878,3071.5,3071.4,6.51159]
[1720546645119,1.55279775,3071.5,3071.4,6.51159]
[1720546645324,1.55279775,3071.5,3071.4,7.162749]
[1720546645325,0.87255878,3071.5,3071.4,7.162749]
[1720546648020,0.87255878,3071.5,3071.4,6.51159]
[1720546648373,0.87255878,3071.5,3071.1,5.58247]
[1720546648374,0.87255878,3071.3,3071.1,5.58247]
[1720546648573,0.87255878,3071.3,3071.1,2.3264]
[1720546649571,0.87255878,3071.3,3071.2,3.25605]
[1720546650000,1.5525763,3071.3,3071.2,3.25605]
[1720546650703,0.87255878,3071.3,3071.2,3.25605]
[1720546651090,1.55241986,3071.3,3071.2,3.25605]
[1720546651507,0.87255878,3071.3,3071.2,3.25605]
[1720546652203,1.55241959,3071.3,3071.2,3.25605]
[1720546652518,0.87255878,3071.3,3071.2,3.25605]
[1720546653714,0.87255878,3071.1,3071.0,3.25616]
[1720546653905,1.5524263,3071.1,3071.0,3.25616]
[1720546654634,0.87255878,3071.1,3071.0,3.25616]
[1720546655044,1.55241993,3071.1,3071.0,3.25616]
[1720546655406,0.87255878,3071.1,3071.0,3.25616]
[1720546656731,1.89236006,3071.1,3071.0,3.25616]
[1720546656934,0.87255878,3071.1,3071.0,3.25616]
[1720546658033,1.89236006,3071.1,3071.0,3.25616]
[1720546658533,1.89236006,3071.1,3070.9,3.25637]
[1720546658751,0.67973413,3071.0,3070.9,3.25637]
[1720546659616,0.87255878,3070.8,3070.7,5.7079]
[1720546660752,0.87255878,3070.8,3070.7,8.96448]
[1720546660963,0.67967816,3071.0,3070.9,3.25637]
[1720546661170,0.67965748,3071.0,3070.9,3.25637]
[1720546661338,0.67965748,3071.0,3070.9,6.51274]
[1720546661545,1.55221626,3071.1,3071.0,3.25626]
[1720546661762,0.87255878,3071.1,3071.0,3.25626]
[1720546662136,0.87255878,3070.8,3070.7,5.70792]
[1720546662568,0.87255878,3070.8,3070.7,8.9645]
[1720546663042,0.87255878,3070.8,3070.7,9.59630685]
[1720546663373,0.87255878,3071.0,3070.9,3.25637]
[1720546664576,1.892045,3071.0,3070.9,3.25637]
[1720546664789,1.55238575,3071.0,3070.9,3.25637]
[1720546665090,0.87255878,3071.0,3070.9,3.25637]
[1720546666056,1.892045,3071.0,3070.9,3.25637]
[1720546666258,0.87255878,3071.0,3070.9,3.25637]
[1720546666761,0.87255878,3071.0,3070.9,4.33437]
[1720546667295,1.892045,3071.0,3070.9,4.33437]
[1720546668164,0.87255878,3071.0,3070.9,4.33437]
[1720546668495,1.01948622,3071.1,3071.0,3.25626]
[1720546668646,1.01948622,3071.1,3070.9,1.078]
[1720546668647,4.78127513,3071.1,3070.9,1.078]
[1720546668850,2.54940138,3071.0,3070.9,4.33437]
[1720546669049,2.44112751,3071.0,3070.9,3.25637]
[1720546669270,2.44110072,3071.0,3070.9,3.25637]
[1720546669552,3.56908483,3071.0,3070.9,3.25637]
[1720546669763,2.54939673,3071.0,3070.9,3.25637]
[1720546670048,2.44106502,3071.0,3070.9,3.25637]
[1720546671253,1.01971735,3071.0,3070.9,3.25637]
[1720546671488,2.4410053,3071.0,3070.9,3.25637]
[1720546673107,2.44096117,3071.0,3070.9,3.25637]
[1720546673392,3.90863256,3071.0,3070.9,3.25637]
[1720546673605,2.54931759,3071.0,3070.8,3.25647]
[1720546673804,3.31367554,3070.9,3070.8,3.25647]
[1720546674298,0.87255878,3070.7,3070.6,3.25661]
[1720546674519,3.31351704,3070.7,3070.6,3.25661]
[1720546674655,3.31351704,3070.7,3070.4,5.66817]
[1720546674656,0.87255878,3070.5,3070.4,5.66817]
[1720546674862,3.31371552,3070.5,3070.4,5.66817]
[1720546675075,3.31371819,3070.5,3070.4,5.66817]
[1720546675393,0.87255878,3070.5,3070.4,5.66817]
[1720546675759,1.55208189,3070.5,3070.4,5.66817]
[1720546675969,0.87255878,3070.5,3070.4,5.66817]
[1720546676546,0.87255878,3070.3,3070.2,6.74441]
[1720546676844,1.55199777,3070.3,3070.2,6.74441]
[1720546678434,0.87255878,3070.3,3070.2,6.74441]
[1720546681539,0.87255878,3070.3,3070.2,7.744986]
[1720546681894,1.55199777,3070.3,3070.2,7.744986]
[1720546682090,0.87255878,3070.3,3070.2,7.744986]
[1720546682390,1.55199777,3070.3,3070.2,7.744986]
[1720546683831,0.87255878,3070.3,3070.2,7.744986]
[1720546684213,0.87255878,3070.3,3070.2,6.74441]
[1720546686122,0.87255878,3070.3,3070.2,5.66641]
[1720546686339,1.55199777,3070.3,3070.2,5.66641]
[1720546687437,0.87255878,3070.3,3070.2,5.66641]
[1720546688349,0.87255878,3070.3,3070.2,6.74441]
[1720546688647,0.87255878,3070.3,3070.2,7.744986]
[1720546689339,0.87255878,3070.3,3070.2,6.74441]
[1720546689542,1.55111579,3070.3,3070.2,5.66641]
[1720546690258,1.55111579,3070.3,3070.1,3.26135]
[1720546690468,1.8903943,3070.3,3070.1,3.26135]
[1720546690868,0.67873281,3070.2,3070.1,3.26135]
[1720546691384,1.890658,3070.3,3070.1,3.26135]
[1720546691684,0.67870288,3070.2,3070.1,3.26135]
[1720546692361,1.890658,3070.3,3070.1,3.26135]
[1720546692560,1.890658,3070.3,3070.1,0.0042]
[1720546692765,1.01809922,3070.2,3070.1,0.0042]
[1720546692965,2.14648258,3070.2,3070.1,0.0042]
[1720546693342,3.56825039,3070.2,3070.1,0.0042]
[1720546694049,1.01809922,3070.2,3070.1,0.0042]
[1720546694268,1.890658,3070.3,3070.1,0.0042]
[1720546694486,1.01809922,3070.2,3070.1,0.0042]
[1720546695561,3.56825757,3070.2,3070.1,0.0042]
[1720546695767,1.01809922,3070.2,3070.1,0.0042]
[1720546696388,1.01809922,3070.3,3070.1,0.0042]
[1720546696685,0.94272452,3070.2,3070.1,0.0042]
[1720546696854,0.07016574,3070.2,3070.1,0.0042]
[1720546697053,0.94272452,3070.2,3070.1,0.0042]
[1720546698277,3.09027941,3070.2,3070.1,0.0042]
[1720546698471,3.09027713,3070.2,3070.1,0.0042]
[1720546699288,4.51202635,3070.2,3070.1,0.0042]
[1720546699690,3.63946757,3070.2,3070.1,0.0042]
[1720546699874,1.62224008,3070.2,3070.1,4.139827]
[1720546700269,0.94272452,3070.2,3070.1,4.139827]
[1720546700570,1.62224008,3070.2,3070.1,4.139827]
[1720546701000,0.94272452,3070.2,3070.1,4.139827]
[1720546701301,1.62227923,3070.2,3070.1,6.594827]
[1720546701507,0.94272452,3070.2,3070.1,6.594827]
[1720546702864,0.94272452,3070.2,3070.1,9.852047]
[1720546704523,2.75054894,3070.2,3070.1,3.26142]
[1720546704679,4.51205426,3070.2,3070.1,0.0042]
[1720546704885,3.49272219,3070.2,3070.1,0.0042]
[1720546705087,3.49272219,3070.2,3069.7,0.005]
[1720546705088,0.87255878,3069.9,3069.7,0.005]
[1720546705284,4.46465645,3069.8,3069.7,0.005]
[1720546705596,10.45430287,3069.8,3069.7,0.005]
[1720546705796,13.45430287,3069.8,3069.7,0.005]
[1720546706184,8.1564342,3069.8,3069.7,0.005]
[1720546706401,6.38665645,3069.8,3069.7,0.005]
[1720546706633,5.51409767,3069.8,3069.7,0.005]
[1720546706843,7.21262702,3069.8,3069.7,0.005]
[1720546707146,7.74553608,3069.8,3069.7,0.005]
[1720546707348,5.23143841,3069.8,3069.7,0.005]
[1720546707515,2.00107495,3069.8,3069.7,0.005]
[1720546707834,0.87255878,3069.8,3069.7,3.26264]
[1720546708040,3.02023104,3069.8,3069.7,3.26264]
[1720546708399,2.00109134,3069.8,3069.7,3.26264]
[1720546709843,2.00109134,3069.8,3069.7,0.005]
[1720546710203,3.02023104,3069.8,3069.7,0.005]
[1720546710670,0.87255878,3069.8,3069.7,0.005]
[1720546710936,1.89166463,3069.8,3069.7,0.005]
[1720546711124,3.02019172,3069.8,3069.7,0.005]
[1720546713112,2.00108587,3069.8,3069.7,0.005]
[1720546713511,3.35989367,3069.8,3069.7,0.005]
[1720546713871,2.48733489,3069.8,3069.7,0.005]
[1720546714068,2.48744132,3069.8,3069.7,0.005]
[1720546714374,3.35990566,3069.8,3069.7,0.005]
[1720546714660,2.0011923,3069.8,3069.7,0.005]
[1720546715175,6.0845578,3069.8,3069.7,0.005]
[1720546716352,6.95711658,3069.8,3069.7,0.005]
[1720546717379,6.95679195,3069.8,3069.7,0.005]
[1720546717586,5.25876977,3069.8,3069.7,0.005]
[1720546717787,6.95681358,3069.8,3069.7,0.005]
[1720546718482,2.8267007,3069.8,3069.7,0.005]
[1720546718661,3.69925948,3069.8,3069.7,0.005]
[1720546719383,2.00121408,3069.8,3069.7,0.005]
[1720546719804,3.6994998,3069.8,3069.7,0.005]
[1720546720092,2.00121408,3069.8,3069.7,0.005]
[1720546720786,2.00123289,3069.8,3069.7,0.005]
[1720546722684,3.69939429,3069.8,3069.7,0.005]
[1720546723803,3.69936733,3069.8,3069.7,0.005]
[1720546723951,2.00120593,3069.8,3069.7,0.005]
[1720546724147,2.00121985,3069.8,3069.7,0.005]
[1720546724355,3.69911652,3069.8,3069.7,0.005]
[1720546724582,6.95665652,3069.8,3069.7,0.005]
[1720546724781,5.25875985,3069.8,3069.7,0.005]
[1720546725407,7.75889366,3069.8,3069.7,0.005]
[1720546725865,6.68089366,3069.8,3069.7,0.005]
[1720546727468,6.68093877,3069.8,3069.7,0.005]
[1720546727668,6.68094184,3069.8,3069.7,0.005]
[1720546727902,6.68094428,3069.8,3069.7,0.005]
[1720546728709,6.68094891,3069.8,3069.7,0.005]
[1720546730907,6.68096035,3069.8,3069.7,0.005]
[1720546732615,10.75896035,3069.8,3069.7,0.005]
[1720546732820,18.01201215,3069.8,3069.7,0.005]
[1720546733020,18.70379482,3069.8,3069.7,0.005]
[1720546734327,16.6664567,3069.8,3069.7,0.005]
[1720546734637,18.70422027,3069.8,3069.7,0.005]
[1720546735293,16.6664567,3069.8,3069.7,0.005]
[1720546735493,18.70418689,3069.8,3069.7,0.005]
[1720546737222,18.7046645,3069.8,3069.7,0.005]
[1720546737395,16.6664567,3069.8,3069.7,0.005]
[1720546737597,18.7050898,3069.8,3069.7,0.005]
[1720546737795,16.66643755,3069.8,3069.7,0.005]
[1720546738041,14.11542145,3069.8,3069.7,0.005]
[1720546738195,14.36971323,3069.8,3069.7,0.005]
[1720546738396,15.44771323,3069.8,3069.7,0.005]
[1720546738852,15.44766345,3069.8,3069.7,0.005]
[1720546739147,18.70520345,3069.8,3069.7,0.005]
[1720546739436,16.66641436,3069.8,3069.7,0.005]
[1720546741549,19.04542227,3069.8,3069.7,0.005]
[1720546741729,16.66641436,3069.8,3069.7,0.005]
[1720546743353,15.53763441,3069.8,3069.7,0.005]
[1720546743536,16.6664925,3069.8,3069.7,0.005]
[1720546744067,19.04485908,3069.8,3069.7,0.005]
[1720546746839,17.91726986,3069.8,3069.7,0.005]
[1720546747167,14.11542145,3069.8,3069.7,0.005]
[1720546747317,16.66659855,3069.8,3069.7,0.005]
[1720546747748,14.11542145,3069.8,3069.7,0.005]
[1720546747932,16.66658627,3069.8,3069.7,0.005]
[1720546749654,17.3140608,3069.8,3069.7,0.005]
[1720546749885,16.66658627,3069.8,3069.7,0.005]
[1720546750361,16.66655995,3069.8,3069.7,0.005]
[1720546753743,16.66651606,3069.8,3069.7,0.005]
[1720546754059,17.31371124,3069.8,3069.7,0.005]
[1720546754630,20.12691313,3069.8,3069.7,0.005]
[1720546755258,16.66651606,3069.8,3069.7,0.005]
[1720546756982,14.11542145,3069.8,3069.7,0.005]
[1720546757125,16.66648219,3069.8,3069.7,0.005]
[1720546757472,16.66646016,3069.8,3069.7,0.005]
[1720546760275,15.53768197,3069.8,3069.7,0.005]
[1720546760561,16.66640124,3069.8,3069.7,0.005]
[1720546761342,13.40886124,3069.8,3069.7,0.005]
[1720546761561,7.11532124,3069.8,3069.7,2.3857]
[1720546761764,6.56532124,3069.8,3069.7,2.3857]
[1720546762192,5.60720442,3069.8,3069.7,2.62427]
[1720546762337,3.56532124,3069.8,3069.7,5.88191]
[1720546762677,3.42353857,3069.8,3069.7,5.88191]
[1720546762843,5.60717614,3069.8,3069.7,2.3857]
[1720546763049,5.60718949,3069.8,3069.7,2.3857]
[1720546763245,3.56529296,3069.8,3069.7,2.3857]
[1720546763672,3.56497232,3069.8,3069.7,2.3857]
[1720546764378,4.64297232,3069.8,3069.7,2.3857]
[1720546764678,5.19297232,3069.8,3069.7,2.3857]
[1720546764863,4.11497232,3069.8,3069.7,2.3857]
[1720546765375,5.9474718,3069.8,3069.7,2.3857]
[1720546766567,5.3974718,3069.8,3069.7,2.3857]
[1720546767039,5.39730141,3069.8,3069.7,2.3857]
[1720546767243,1.01431317,3069.8,3069.7,2.3857]
[1720546767477,3.5651001,3069.8,3069.7,2.3857]
[1720546767678,5.39732261,3069.8,3069.7,2.3857]
[1720546770292,1.01431317,3069.8,3069.7,2.3857]
[1720546770457,2.4364245,3069.8,3069.7,2.3857]
[1720546770655,5.39670676,3069.8,3069.7,2.3857]
[1720546773463,2.14297296,3069.8,3069.7,2.3857]
[1720546773657,5.39634153,3069.8,3069.7,2.3857]
[1720546776898,1.01431317,3069.8,3069.7,2.3857]
[1720546777064,3.56508679,3069.8,3069.7,2.3857]
[1720546777401,5.3961863,3069.8,3069.7,2.3857]
[1720546779021,5.9461863,3069.8,3069.7,2.3857]
[1720546780301,5.94574823,3069.8,3069.7,2.3857]
[1720546783706,5.94593825,3069.8,3069.7,2.3857]
[1720546786989,1.56431317,3069.8,3069.7,2.3857]
[1720546787330,5.94592693,3069.8,3069.7,2.3857]
[1720546787531,5.94595093,3069.8,3069.7,2.3857]
[1720546789588,8.32546566,3069.8,3069.7,2.3857]
[1720546789788,5.94595093,3069.8,3069.7,2.3857]
[1720546790399,2.98645035,3069.8,3069.7,2.3857]
[1720546790600,5.9467771,3069.8,3069.7,2.3857]
[1720546793793,5.94644092,3069.8,3069.7,2.3857]
[1720546795424,8.3271208,3069.8,3069.7,2.3857]
[1720546795917,8.39644092,3069.8,3069.7,2.3857]
[1720546796415,10.43701708,3069.8,3069.7,2.3857]
[1720546796936,10.43737591,3069.8,3069.7,2.3857]
[1720546797144,4.01431317,3069.8,3069.7,2.3857]
[1720546797446,3.56486065,3069.8,3069.7,2.3857]
[1720546797610,8.39612438,3069.8,3069.7,2.3857]
[1720546798313,8.39613196,3069.8,3069.7,2.3857]
[1720546798899,7.43715561,3069.8,3069.7,9.791094]
[1720546799098,3.42312471,3069.8,3069.7,5.64334]
[1720546799636,5.39633585,3069.8,3069.7,5.64334]
[1720546799995,7.4373595,3069.8,3069.7,5.64334]
[1720546800219,7.4373595,3069.8,3069.7,2.3857]
[1720546800439,4.26879892,3069.8,3069.7,2.3857]
[1720546800747,5.39739981,3069.8,3069.7,2.3857]
[1720546802842,5.39730683,3069.8,3069.7,2.3857]
[1720546803045,5.39730683,3069.8,3069.7,0.005]
[1720546803256,11.3301197,3069.8,3069.7,0.005]
[1720546803478,8.94730683,3069.8,3069.7,0.005]
[1720546803767,16.73519382,3069.8,3069.7,0.005]
[1720546803961,21.95373382,3069.8,3069.7,0.005]
[1720546805762,18.69619382,3069.8,3069.7,0.005]
[1720546806066,18.69619382,3069.8,3069.7,2.4578]
[1720546806067,10.90830683,3069.8,3069.7,2.4578]
[1720546806223,10.90865184,3069.8,3069.7,2.4578]
[1720546806426,6.52531481,3069.8,3069.7,2.4578]
[1720546806621,10.90866591,3069.8,3069.7,2.4578]
[1720546807232,8.94766591,3069.8,3069.7,2.4578]
[1720546807434,8.39766591,3069.8,3069.7,2.4578]
[1720546808055,7.26878227,3069.8,3069.7,2.4578]
[1720546808270,8.39746459,3069.8,3069.7,0.005]
[1720546808550,8.94746459,3069.8,3069.7,0.005]
[1720546809546,8.94765611,3069.8,3069.7,0.005]
[1720546811284,12.20519611,3069.8,3069.7,0.005]
[1720546811787,12.83992046,3069.8,3069.7,0.005]
[1720546812294,12.20519611,3069.8,3069.7,0.005]
[1720546812587,12.83986543,3069.8,3069.7,0.005]
[1720546812789,18.05840543,3069.8,3069.7,0.005]
[1720546812952,20.87332213,3069.8,3069.7,0.005]
[1720546813292,20.87336445,3069.8,3069.7,0.005]
[1720546813460,18.05840218,3069.8,3069.7,0.005]
[1720546814955,20.8727717,3069.8,3069.7,0.005]
[1720546815252,18.05840218,3069.8,3069.7,0.005]
[1720546815692,20.87253922,3069.8,3069.7,0.005]
[1720546816261,13.67506413,3069.8,3069.7,2.2885]
[1720546816461,14.80069904,3069.8,3069.7,2.2885]
[1720546816765,14.80032671,3069.8,3069.7,2.2885]
[1720546817370,14.16530529,3069.8,3069.7,2.2885]
[1720546817565,8.39676529,3069.8,3069.7,2.2885]
[1720546818090,10.77844175,3069.8,3069.7,2.2885]
[1720546818659,8.39676529,3069.8,3069.7,2.2885]
[1720546819488,8.39676529,3069.8,3069.7,0.005]
[1720546819489,13.61530529,3069.8,3069.7,0.005]
[1720546819689,20.86922672,3069.8,3069.7,0.005]
[1720546819858,20.54049802,3069.8,3069.7,0.00374468]
[1720546820055,21.4130568,3069.8,3069.7,0.00374468]
[1720546820413,18.05677314,3069.8,3069.7,0.00374468]
[1720546821471,0.87255878,3069.1,3069.0,2.5179251]
[1720546821681,3.56523806,3069.1,3069.0,2.5179251]
[1720546821997,8.3965086,3069.1,3069.0,2.5179251]
[1720546822902,7.2682868,3069.1,3069.0,2.5179251]
[1720546823063,15.24450034,3069.1,3069.0,0.1131251]
[1720546823399,18.82928034,3069.1,3069.0,0.1131251]
[1720546825399,21.20804905,3069.1,3069.0,0.1131251]
[1720546826161,20.07911551,3069.1,3069.0,0.1131251]
[1720546826461,21.20810969,3069.1,3069.0,0.1131251]
[1720546826704,21.2075684,3069.1,3069.0,0.1131251]
[1720546828302,22.26741396,3069.1,3069.0,0.1131251]
[1720546829676,25.52633191,3069.1,3069.0,0.1131251]
[1720546830282,3.25881,3068.6,3068.5,0.005]
[1720546830502,7.23321366,3068.6,3068.5,0.005]
[1720546830917,9.20696778,3068.6,3068.5,0.005]
[1720546831087,3.25892,3068.5,3068.4,2.2154]
[1720546831291,12.412519,3068.5,3068.4,2.2154]
[1720546831485,10.58060366,3068.5,3068.4,2.2154]
[1720546831685,9.36076488,3068.5,3068.4,2.2154]
[1720546832780,6.80892,3068.5,3068.4,2.2154]
[1720546832987,12.41252753,3068.5,3068.4,2.2154]
[1720546833322,4.13242878,3067.6,3067.5,0.005]
[1720546833526,3.42452391,3067.6,3067.5,0.005]
[1720546833680,6.74751768,3067.6,3067.5,0.005]
[1720546833885,8.92938768,3067.6,3067.5,0.005]
[1720546834096,22.12939125,3067.6,3067.5,0.005]
[1720546834294,22.12939125,3067.6,3066.4,2.3901]
[1720546834295,0.87255878,3066.5,3066.4,2.3901]
[1720546834629,0.87255878,3066.1,3066.0,2.3901]
[1720546834786,0.87255878,3066.1,3066.0,2.64042251]
[1720546835179,0.87255878,3066.1,3066.0,2.3901]
[1720546835411,3.67709485,3066.4,3066.0,2.3901]
[1720546835412,6.93825485,3066.4,3066.0,2.3901]
[1720546835585,3.0,3066.3,3066.0,2.3901]
[1720546835780,0.87255878,3066.1,3066.0,2.3901]
[1720546836406,3.87255878,3066.5,3066.0,2.3901]
[1720546836596,0.87255878,3066.1,3066.0,2.3901]
[1720546838033,3.67569734,3066.6,3066.0,2.3901]
[1720546838034,0.87255878,3066.5,3066.0,6.22810051]
[1720546838183,5.22257,3066.0,3065.9,0.1131251]
[1720546838386,5.03100815,3066.0,3065.9,0.1131251]
[1720546838584,3.07000815,3066.0,3065.9,0.1131251]
[1720546838788,0.94256693,3066.0,3065.9,0.1131251]
[1720546842426,0.07000815,3066.0,3065.9,0.1131251]
[1720546842636,0.94256693,3066.0,3065.9,3.3748051]
[1720546842950,0.94256693,3066.0,3065.9,3.71228561]
[1720546844288,0.07000815,3066.0,3065.9,6.6364851]
[1720546844494,0.07000815,3066.0,3065.9,8.9935851]
[1720546847240,0.94256693,3066.0,3065.9,2.4702251]
[1720546848443,0.94256693,3066.0,3065.9,5.7319051]
[1720546848866,3.26255,3065.1,3064.9,0.01308763]
[1720546849004,6.426395,3065.0,3064.9,0.01308763]
[1720546849209,0.87255878,3064.1,3063.8,3.26384]
[1720546849450,1.961,3064.7,3063.8,3.26384]
[1720546849451,0.87255878,3063.9,3063.8,3.26384]
[1720546849619,3.0,3064.6,3064.0,3.2636]
[1720546849825,0.87255878,3064.5,3064.0,3.2636]
[1720546850555,0.87255878,3064.5,3064.2,3.26349]
[1720546850844,0.87255878,3064.5,3064.3,3.26331]
[1720546851058,0.87255878,3064.9,3064.3,3.26331]
[1720546851210,0.87255878,3064.6,3064.3,3.26331]
[1720546851855,0.87255878,3064.6,3064.4,2.2909]
[1720546852440,0.06995136,3064.8,3064.4,5.55417]
[1720546852975,0.06995136,3064.8,3064.7,6.52592]
[1720546854003,0.94251014,3064.8,3064.7,6.52592]
[1720546854270,0.06995136,3064.8,3064.7,6.52592]
[1720546854568,0.06995136,3064.8,3064.7,7.178512]
[1720546857350,0.94251014,3064.8,3064.7,3.26296]
[1720546857760,0.94251014,3064.8,3064.5,3.26309]
[1720546857959,0.87255878,3064.6,3064.5,3.26309]
[1720546858795,0.06995136,3064.8,3064.7,3.26296]
[1720546858954,0.94251014,3064.8,3064.7,3.26296]
[1720546860195,0.06995136,3064.8,3064.7,6.52592]
[1720546861760,0.06995136,3064.8,3064.7,10.441472]
[1720546862162,7.46,3065.3,3065.2,6.52484]
[1720546862397,0.87255878,3065.4,3065.3,3.26232]
[1720546862688,0.87255878,3065.4,3065.3,6.52464]
[1720546863554,27.03,3065.8,3065.5,3.26211]
[1720546863555,0.87255878,3065.7,3065.5,3.26211]
[1720546864990,0.87255878,3065.4,3065.3,5.71842]
[1720546866332,0.87255878,3065.4,3065.3,8.98074]
[1720546867105,0.87255878,3065.4,3065.1,3.26243]
[1720546867305,0.87255878,3065.4,3065.2,3.26242]
[1720546867706,0.87255878,3065.4,3065.3,3.26232]
[1720546868357,0.87255878,3065.4,3065.2,3.26237]
[1720546868810,0.87255878,3065.4,3065.2,6.52473]
[1720546869011,0.87255878,3065.4,3065.2,3.26236]
[1720546869211,0.87255878,3065.1,3065.0,3.26253]
[1720546869914,0.87255878,3065.3,3065.0,3.26253]
[1720546870113,0.87255878,3065.1,3064.9,3.26274]
[1720546870728,0.87255878,3064.9,3064.8,2.2858]
[1720546870913,0.87255878,3064.9,3064.8,8.8115]
[1720546871860,0.87255878,3065.1,3065.0,6.52528]
[1720546872214,0.87255878,3065.1,3065.0,3.26264]
[1720546872420,0.87255878,3064.9,3064.8,5.54855]
[1720546872627,0.87255878,3064.9,3064.8,8.8114]
[1720546873914,0.87255878,3064.9,3064.8,5.54855]
[1720546874435,0.87255878,3064.9,3064.8,8.8114]
[1720546874748,0.87255878,3064.9,3064.8,5.54855]
[1720546874962,0.87255878,3064.9,3064.8,8.8114]
[1720546875565,0.87255878,3064.9,3064.8,3.26285]
[1720546880320,0.87255878,3064.7,3064.6,3.26297]
[1720546880654,0.87255878,3064.7,3064.5,6.52622]
[1720546880859,0.87255878,3064.7,3064.6,3.26306]
[1720546881426,0.87255878,3064.7,3064.6,6.52612]
[1720546883040,0.67614808,3065.1,3065.0,3.26264]
[1720546883244,2.55444697,3065.1,3065.0,3.26264]
[1720546884059,2.55434336,3065.1,3065.0,3.26264]
[1720546884244,2.55434336,3065.1,3064.6,3.26298]
[1720546884245,0.87255878,3064.9,3064.6,3.26298]
[1720546884445,0.87255878,3064.7,3064.6,3.26298]
[1720546884654,2.00288341,3064.7,3064.6,3.26298]
[1720546884853,2.00288341,3064.7,3063.9,2.4174]
[1720546884854,0.87255878,3064.1,3063.9,2.4174]
[1720546885193,0.87255878,3064.1,3064.0,6.5274]
[1720546886392,0.87255878,3064.3,3064.2,6.52698]
[1720546886548,1.35229616,3064.9,3063.9,2.4174]
[1720546886549,0.67614808,3064.7,3064.6,3.26306]
[1720546886753,1.54870686,3064.7,3064.6,3.26306]
[1720546886977,4.10344104,3064.7,3064.6,3.26306]
[1720546887285,2.67911208,3064.7,3064.6,3.26306]
[1720546888051,0.87255878,3064.6,3064.5,3.26316]
[1720546888251,2.002964,3064.6,3064.5,3.26316]
[1720546888469,3.0484455,3064.6,3064.5,3.26316]
[1720546889193,1.2418922,3064.6,3064.5,3.26316]
[1720546889402,0.87255878,3064.6,3064.5,3.26316]
[1720546889685,0.87255878,3064.6,3064.5,6.52633]
[1720546891862,0.67614808,3064.7,3064.6,6.52612]
[1720546892573,1.54870686,3064.7,3064.6,6.52612]
[1720546893302,1.54870686,3064.9,3064.8,3.26285]
[1720546893505,1.8867809,3064.9,3064.8,6.5257]
[1720546894083,1.8867809,3064.9,3064.8,3.26285]
[1720546894279,4.77941927,3064.9,3064.8,3.26285]
[1720546895614,3.42715649,3064.9,3064.7,3.26296]
[1720546895780,2.77736917,3064.8,3064.7,3.26296]
[1720546896110,2.55459771,3064.8,3064.7,3.26296]
[1720546896671,0.87255878,3064.6,3064.5,3.26309]
[1720546897212,1.54907897,3064.6,3064.5,3.26309]
[1720546897814,1.54907897,3064.6,3064.5,6.52626]
[1720546899404,3.31163752,3064.6,3064.5,3.26309]
[1720546899919,4.44202228,3064.6,3064.5,6.52626]
[1720546900121,4.44202792,3064.6,3064.5,3.26309]
[1720546900421,1.88738463,3064.6,3064.5,6.52626]
[1720546900594,4.44206914,3064.6,3064.5,6.52626]
[1720546901111,3.31167776,3064.6,3064.5,6.52626]
[1720546901282,4.44204746,3064.6,3064.5,6.52626]
[1720546903703,1.88738463,3064.6,3064.5,6.52626]